Cogmind - Beta 13 @@@ ROGUE MODE // 2024.04.20 @ 17:43:47 Player: Cheeriohz Result: Destroyed by EX-DEC with AWS/EX-DEC Performance ------------- Evolutions (1) 500 Regions Visited (5) 1000 Robots Destroyed (58) 290 Value Destroyed (1150) 1150 Prototype IDs (4) 80 Alien Tech Used (0) 0 Bonus (-32) -32 TOTAL SCORE: 2988 Bonus ------- Follower Combat Kills 7 Friendly Fire -39 Cogmind --------- Core Integrity 0/400 Matter 280/300 Energy 70/100 System Corruption 8% Temperature Cool (0) Movement Treading (160) Location -9/Exiles Parts ------- > --- POWER (1) -------- (None) > --- PROPULSION (2) --- Light Treads Light Treads > --- UTILITY (4) ------ Large Storage Unit > --- WEAPON (2) ------- Flail > --- INVENTORY (15) --- Improved Ion Engine Improved Ion Engine Light Treads Light Treads Light Treads Rocket Launcher Rocket Launcher Rocket Launcher Peak State ------------ > --- POWER ------------ Improved Ion Engine > --- PROPULSION ------- Wheel Wheel > --- UTILITY ---------- Huge Storage Unit Seismic Detector Improved Light Armor Plating Improved Light Armor Plating > --- WEAPON ----------- Heavy Assault Rifle Heavy Assault Rifle > --- INVENTORY -------- Improved Ion Engine Light Treads Light Treads Light Treads Light Treads Improved Treads Wheel Wheel Improved Heat Sink High-capacity Matter Pod Structural Scanner Improved Terrain Scanner Terrain Scan Processor Seismic Detector Light Armor Plating Improved Light Armor Plating Improved Light Armor Plating Hacking Suite High-powered Tractor Beam Shotgun Shotgun Light Cannon Light Cannon Rocket Launcher Hammer [Rating: 20] Favorites ----------- Power Improved Ion Engine Engine Improved Ion Engine Propulsion Wheel Treads Light Treads Leg Aluminum Leg Wheel Wheel Utility Improved Light Armor Plating Device Seismic Detector Storage Huge Storage Unit Protection Improved Light Armor Plating Weapon Heavy Assault Rifle Energy Gun Medium Laser Energy Cannon Particle Cannon Ballistic Gun Heavy Assault Rifle Ballistic Cannon Light Cannon Launcher Rocket Launcher Impact Weapon Flail Build | -11 -10 -10 -9 -9 -9 ------- Run | Yrd Mat Min Mat Min Exi Slots Evolved 2 | . . . 2 . . Power . | . . . . . . Propulsion . | . . . . . . Utility 2 | . . . 2 . . Weapon . | . . . . . . Parts Attached 56 | 3 11 4 16 4 18 Power 3 | . 1 1 1 . . Engine 3 | . 1 1 1 . . Core . | . . . . . . Reactor . | . . . . . . Propulsion 15 | 2 3 . 2 1 7 Treads 7 | . . . . . 7 Leg . | . . . . . . Wheel 8 | 2 3 . 2 1 . Hover . | . . . . . . Flight . | . . . . . . Utility 15 | 1 2 1 5 1 5 Device 3 | 1 1 . 1 . . Storage 2 | . 1 . . . 1 Processor . | . . . . . . Hackware . | . . . . . . Protection 10 | . . 1 4 1 4 Artifact . | . . . . . . Weapon 23 | . 5 2 8 2 6 Energy Gun . | . . . . . . Energy Cannon 1 | . 1 . . . . Ballistic Gun 12 | . 2 . 6 1 3 Ballistic Cannon 5 | . 2 1 2 . . Launcher 4 | . . 1 . 1 2 Special Weapon . | . . . . . . Impact Weapon 1 | . . . . . 1 Slashing Weapon . | . . . . . . Piercing Weapon . | . . . . . . Special Melee Weapon . | . . . . . . Unidentified Prototypes . | . . . . . . Parts Lost 19 | . 1 . 3 . 15 Power 1 | . . . . . 1 Propulsion 6 | . 1 . 2 . 3 Utility 8 | . . . 1 . 7 Weapon 4 | . . . . . 4 Highest Loss Streak 7 | . 1 . 1 . 7 To Critical Strikes 4 | . . . . . 4 Average Slot Usage (%) 98 | . 99 100 98 100 95 Engine 11 | . 14 14 11 11 10 Treads 6 | . . . . . 16 Wheel 17 | . 27 28 21 22 5 Device 4 | . 14 2 6 . . Storage 11 | . 14 14 11 11 11 Protection 22 | . . 11 25 33 30 Ballistic Gun 15 | . 18 . 11 22 18 Ballistic Cannon 6 | . 4 27 10 . . Naked Turns . | . . . . . . Heaviest Build 106 | 15 92 96 102 106 106 Greatest Support 43 | 20 20 20 20 20 43 Greatest Overweight (x) 10 | 1 9 4 10 5 5 Average Overweight (x) 3 | . 3 4 4 5 2 Largest Inventory Capacity 25 | 8 25 25 25 25 25 Average Capacity 21 | 8 22 25 25 25 17 Most Carried 25 | 8 25 25 25 25 25 Average Carried 19 | 6 15 24 24 25 14 Final Capacity 25 | 8 25 25 25 25 15 Final Carried 25 | 8 25 25 25 25 8 Class Distribution -------------------- 51% | Scavenger-Mutant 48% | Mutant Dominant Class ---------------- Mutant | -10/Materials Mutant | -10/Mines Scavenger-Mutant | -9/Materials Scavenger-Mutant | -9/Mines Scavenger-Mutant | -9/Exiles Resources | -11 -10 -10 -9 -9 -9 ----------- Run | Yrd Mat Min Mat Min Exi Matter Collected 2129 | 284 431 158 599 116 541 Remotely . | . . . . . . Salvage Created 1678 | 153 378 50 841 87 169 Parts 131 | 12 27 12 66 6 8 Haulers Intercepted 2 | . 1 . 1 . . Recyclers Shooed . | . . . . . . Parts Field Recycled . | . . . . . . Retrieved Matter . | . . . . . . Parts Self-Destructed . | . . . . . . Prevented . | . . . . . . Kills | -11 -10 -10 -9 -9 -9 ------- Run | Yrd Mat Min Mat Min Exi Combat Hostiles Destroyed 47 | . 11 6 19 6 5 Guns 23 | . 6 . 13 3 1 Cannons 12 | . 3 3 6 . . AOE 12 | . 2 3 . 3 4 Classes Destroyed 11 | 2 6 . 1 . 2 Worker 1 | . 1 . . . . Builder 2 | . 1 . 1 . . Tunneler 5 | 4 . . . 1 . Hauler 2 | . 1 . 1 . . Recycler 2 | 1 . . 1 . . Operator 2 | . 1 . 1 . . Turret 1 | . . . . . 1 Swarmer 22 | . 6 6 4 6 . Grunt 12 | . 5 . 7 . . Sentry 8 | . . . 8 . . Assembled 4 | . . . . . 4 Best Kill Streak 5 | 5 4 3 4 4 4 Combat Bots Only 4 | . 4 3 4 3 4 Max Kills in Single Turn 3 | 1 3 1 2 3 2 Gunslinging 1 | . . . 1 . . Exploded 3 | . 2 1 . 3 2 Melee . | . . . . . . Uniques/NPCs Destroyed 2 | . . . . . 2 8R-AWN (-9/Exiles) EX-BIN (-9/Exiles) Combat | -11 -10 -10 -9 -9 -9 -------- Run | Yrd Mat Min Mat Min Exi Hostile Shots Fired 288 | . 44 11 76 16 141 Missed 63 | . 6 4 19 6 28 Damage Taken 3537 | . 431 87 749 120 2150 Core 558 | . 119 24 113 . 302 Absorbed by Shields . | . . . . . . Core Remaining (%) 71 | 100 . 42 . . . Volleys Fired 189 | 18 34 6 58 11 62 Largest 2 | 2 2 2 2 2 2 Hottest 88 | 70 88 70 70 46 47 Shots Fired 325 | 36 66 9 116 20 78 Gun 231 | 36 51 . 62 18 64 Cannon 75 | . 15 6 54 . . Launcher 19 | . . 3 . 2 14 Special . | . . . . . . Kinetic 268 | 18 46 6 116 18 64 Thermal 38 | 18 20 . . . . Explosive 19 | . . 3 . 2 14 Electromagnetic . | . . . . . . Robot Hit Streak 14 | 7 11 4 14 2 11 Robot Miss Streak 6 | 3 3 2 2 6 3 Penetration Max . | . . . . . . Secondary Targets 3 | . 1 . 1 1 . Max Gunslinging Chain 1 | . 1 . 1 1 . Shots Hit Robots 233 | 26 44 4 89 5 65 Core Hits 106 | 6 22 7 33 8 30 Critical Kills . | . . . . . . Critical Parts Destroyed 3 | . 1 . 1 . 1 Critical Strikes 7 | . 1 1 4 . 1 Destroy 2 | . 1 . 1 . . Blast 4 | . . 1 3 . . Smash 1 | . . . . . 1 Melee Attacks 17 | . . . . . 17 Impact 17 | . . . . . 17 Slashing . | . . . . . . Piercing . | . . . . . . Sneak Attacks 4 | . . . . . 4 Combat Hostiles . | . . . . . . Follow-up Attacks . | . . . . . . Damage Inflicted 5390 | 318 897 165 1486 295 2229 Guns 2815 | 318 499 . 829 84 1085 Cannons 902 | . 192 53 657 . . Explosions 967 | . 206 112 . 211 438 Melee 706 | . . . . . 706 Ramming . | . . . . . . Kinetic 3328 | 156 464 53 1486 84 1085 Thermal 389 | 162 227 . . . . Explosive 761 | . . 112 . 211 438 Electromagnetic 206 | . 206 . . . . Impact 706 | . . . . . 706 Slashing . | . . . . . . Piercing . | . . . . . . Highest Corruption 8 | . 4 4 . . 8 Average Corruption 3 | . 3 4 . . 3 Corruption Purged . | . . . . . . Corruption Blocked . | . . . . . . Effects 27 | . 15 11 . . 1 Message Errors 7 | . 4 3 . . . Matter Fused 8 | . 3 5 . . . Heat Flow Errors 2 | . 1 1 . . . Energy Discharges 2 | . 2 . . . . Parts Fused 1 | . . 1 . . . Data Loss (minor) 2 | . 1 . . . 1 Data Loss (major) 2 | . 2 . . . . Misfires 1 | . 1 . . . . Alerts 2 | . 1 1 . . . Overload Shots . | . . . . . . Overflow Damage 468 | . 6 . 15 . 447 Projectiles 21 | . 6 . 15 . . Explosions . | . . . . . . Melee 447 | . . . . . 447 Knockbacks 11 | . . . 7 . 4 Impact 4 | . . . . . 4 Kinetic 7 | . . . 7 . . Secondary . | . . . . . . Self-Inflicted Damage 175 | . 42 21 . 43 69 Shots 5 | . 1 1 . 1 2 Rammed . | . . . . . . Targets Rammed . | . . . . . . Kicked . | . . . . . . Crushed . | . . . . . . Highest Temperature 408 | 63 408 267 243 2 68 Average Temperature 70 | 28 125 87 59 1 25 Received Heat Transfer 529 | . 171 9 309 . 40 Siege Activations . | . . . . . . Robots Corrupted . | . . . . . . Combat Hostiles . | . . . . . . Parts Fried . | . . . . . . Impact Corruptions 34 | . . . . . 34 Robots Melted . | . . . . . . Combat Hostiles . | . . . . . . Parts Melted 1 | . 1 . . . . Heat Transferred 962 | 481 481 . . . . Parts Sabotaged . | . . . . . . Parts Stolen . | . . . . . . Parts Stripped . | . . . . . . Power Chain Reactions . | . . . . . . Alert | -11 -10 -10 -9 -9 -9 ------- Run | Yrd Mat Min Mat Min Exi Peak Influence 375 | 25 230 105 375 271 . Initial 120 | . 16 . 39 120 . Average 115 | 12 96 40 141 174 . Maximum Alert Level 1 | . 1 . 1 1 . Low Security (%) 82 | 100 89 100 75 69 . Level 1 17 | . 10 . 24 30 . Level 2 . | . . . . . . Level 3 . | . . . . . . Level 4 . | . . . . . . Level 5 . | . . . . . . High Security . | . . . . . . Max Security . | . . . . . . Squads Dispatched 3 | . 2 . 1 . . Investigation . | . . . . . . Extermination . | . . . . . . Reinforcement 3 | . 2 . 1 . . Assault . | . . . . . . Garrison . | . . . . . . Intercept . | . . . . . . Searches Triggered . | . . . . . . Construction Impeded . | . . . . . . Haulers Reinforced . | . . . . . . Active Scanning Responses . | . . . . . . Cargo Convoy Interrupts . | . . . . . . Stealth | -11 -10 -10 -9 -9 -9 --------- Run | Yrd Mat Min Mat Min Exi Distress Signals 4 | . 1 . 3 . . Communications Jammed . | . . . . . . Distress Signals . | . . . . . . Times Spotted 81 | . 20 8 32 6 15 Peak Tracking Total 9 | . 5 3 4 3 9 Tactical Retreats 9 | . 2 1 3 . 3 Traps | -11 -10 -10 -9 -9 -9 ------- Run | Yrd Mat Min Mat Min Exi Traps Triggered 2 | . 2 . . . . Indirectly . | . . . . . . Trap Hack Attempts . | . . . . . . Triggered . | . . . . . . Disarmed . | . . . . . . Reprogrammed . | . . . . . . Reused . | . . . . . . Traps Extracted . | . . . . . . Installed . | . . . . . . Triggered . | . . . . . . Machines | -11 -10 -10 -9 -9 -9 ---------- Run | Yrd Mat Min Mat Min Exi Machines Disabled 10 | . 1 1 . 2 6 Max in Single Turn 2 | . 1 1 . 2 2 Machines Repaired . | . . . . . . Machines Dismantled . | . . . . . . Machines Sabotaged . | . . . . . . Overloaded Fab Kills . | . . . . . . Hacking | -11 -10 -10 -9 -9 -9 --------- Run | Yrd Mat Min Mat Min Exi Machines Accessed 13 | . 6 . 6 . 1 Terminals 12 | . 6 . 6 . . Fabricators . | . . . . . . Repair Stations . | . . . . . . Recycling Units . | . . . . . . Scanalyzers . | . . . . . . Garrison Access . | . . . . . . Total Hacks 53 | . 18 . 12 . 23 Successful 38 | . 9 . 6 . 23 Failed 15 | . 9 . 6 . . Catastrophic 3 | . 1 . 2 . . Database Lockouts . | . . . . . . Manual 19 | . 13 . 6 . . Terminals 30 | . 18 . 12 . . Fabricators . | . . . . . . Repair Stations . | . . . . . . Recycling Units . | . . . . . . Scanalyzers . | . . . . . . Garrison Access . | . . . . . . Terminal Hacks 38 | . 9 . 6 . 23 Record 23 | . . . . . 23 Robot Analysis 7 | . 4 . 3 . . Prototype ID Bank 2 | . 1 . 1 . . Branch Access Points 1 | . . . 1 . . Alert Level 1 | . . . 1 . . Unreport Threat 2 | . 2 . . . . Locate Traps 1 | . 1 . . . . Recall Reinforcements 1 | . 1 . . . . Fabricator Hacks . | . . . . . . Repair Station Hacks . | . . . . . . Recycling Unit Hacks . | . . . . . . Scanalyzer . | . . . . . . Garrison Access Hacks . | . . . . . . Unauthorized Hacks . | . . . . . . Terminals . | . . . . . . Fabricators . | . . . . . . Repair Stations . | . . . . . . Recycling Units . | . . . . . . Scanalyzers . | . . . . . . Garrison Access . | . . . . . . Data Cores Recovered . | . . . . . . Used . | . . . . . . Hacking Detections 11 | . 6 . 5 . . Full Trace Events . | . . . . . . Feedback Events . | . . . . . . Feedback Blocked . | . . . . . . Robot Schematics Acquired . | . . . . . . Robots Built . | . . . . . . Authchips . | . . . . . . Time . | . . . . . . Total Robot Build Rating . | . . . . . . Part Schematics Acquired . | . . . . . . Parts Built . | . . . . . . Authchips . | . . . . . . Time . | . . . . . . Total Part Build Rating . | . . . . . . Parts Repaired . | . . . . . . Time . | . . . . . . Parts Recycled . | . . . . . . Recycled Matter . | . . . . . . Retrieved Matter . | . . . . . . Retrieved Components . | . . . . . . Parts Scanalyzed . | . . . . . . Part Schematics Acquired . | . . . . . . Parts Damaged . | . . . . . . Bothacking | -11 -10 -10 -9 -9 -9 ------------ Run | Yrd Mat Min Mat Min Exi Used RIF Installer . | . . . . . . Robots Hacked . | . . . . . . Non-combat . | . . . . . . Combat . | . . . . . . Robot Hacks Applied . | . . . . . . Relay Couplers Released . | . . . . . . Fabnet Peak Effective % . | . . . . . . Robots Rewired . | . . . . . . Allies Hacked . | . . . . . . Hacks Repelled . | . . . . . . Allies | -11 -10 -10 -9 -9 -9 -------- Run | Yrd Mat Min Mat Min Exi Total Allies 1 | . . . . 1 . Largest Group 1 | . . . . 1 . Highest-Rated Group 31 | . . . . 31 . Highest-Rated Ally 31 | . . . . 31 . Total Orders . | . . . . . . Ally Attacks 1 | . . . . 1 . Total Damage 21 | . . . . 21 . Kills 1 | . . . . 1 . Allies Corrupted . | . . . . . . Allies Melted . | . . . . . . Intel | -11 -10 -10 -9 -9 -9 ------- Run | Yrd Mat Min Mat Min Exi Robot Analysis Total 7 | . 4 . 3 . . Derelict Logs Recovered 3 | . . 2 . 1 . Drone Launches . | . . . . . . Drone Recoveries . | . . . . . . Exploration | -11 -10 -10 -9 -9 -9 ------------- Run | Yrd Mat Min Mat Min Exi Turns Passed 5743 | 118 856 675 1280 795 2019 Spaces Moved 3017 | 52 495 457 658 472 883 Core . | . . . . . . Treads 592 | . . . . . 592 Legs 32 | 32 . . . . . Wheels 2393 | 20 495 457 658 472 291 Hover . | . . . . . . Flight . | . . . . . . Fastest Speed 80 | 80 80 140 140 155 155 Average Speed 159 | 108 130 140 145 155 200 Slowest Speed 320 | 190 215 140 230 155 320 Overloaded Moves . | . . . . . . Propulsion Burnouts . | . . . . . . Robots Hopped . | . . . . . . Cave-ins Triggered . | . . . . . . Exploration Rate (%) 67 | 4 91 97 64 85 66 Regions Visited 5 Branch Regions 3 Pre-discovered Areas 2 | . . 1 . . 1 Known Exits Taken 1 | . . . 1 . . Unknown Exits Taken 4 | 1 1 1 . 1 . Scrap Searched 4 | . . 1 . 3 . Spaces Dug . | . . . . . . Terrain Destroyed 105 | . . 35 . 21 49 Melee . | . . . . . . Projectile . | . . . . . . AOE 105 | . . 35 . 21 49 Terrain Rammed . | . . . . . . Walls Destroyed . | . . . . . . Machines Disabled . | . . . . . . Actions | -11 -10 -10 -9 -9 -9 --------- Run | Yrd Mat Min Mat Min Exi Total 3625 | 77 640 488 873 515 1032 Wait 238 | . 75 7 113 25 18 Move 3012 | 51 494 456 657 471 883 Hop . | . . . . . . Pick Up 50 | 2 14 6 14 1 13 Fast Attach 16 | 3 6 2 3 1 1 Attach 14 | . 1 . 4 . 9 Detach 9 | 1 6 1 1 . . Swap 26 | . 4 2 9 3 8 Drop 54 | 2 6 8 14 3 21 Fire 189 | 18 34 6 58 11 62 Melee 17 | . . . . . 17 Ram . | . . . . . . Kick . | . . . . . . Crush . | . . . . . . Escape Stasis . | . . . . . . Rewire . | . . . . . . Trap . | . . . . . . Miscellaneous . | . . . . . . Route ------- -11/Scrapyard -10/Materials (discovered 4 exits: *Mat x3 / [*Min]) -10/Mines (discovered 2 exits: *Mat x2) -9/Materials (discovered 3 exits: *Min x2 / *Sto) -9/Mines (discovered 3 exits: [*Mat x2] / *Exi) -9/Exiles History --------- Turn | Location | Event 10 | -11/Scrapyard | Discovered new exit (range 2) 119 | -11/Scrapyard | Entered Materials 302 | -10/Materials | Build established: Mutant 304 | -10/Materials | Discovered new exit (range 5) 435 | -10/Materials | Discovered new exit (range 16) 702 | -10/Materials | Discovered new exit (range 16) 915 | -10/Materials | Discovered new exit (range 3) 975 | -10/Materials | Entered Mines 982 | -10/Mines | Received a Rocket Launcher from a helpful Derelict 1357 | -10/Mines | Core integrity fell below 50% 1406 | -10/Mines | Learned Materials trap positions 1424 | -10/Mines | Joined a pair of Derelicts in attacking an 0b10 outpost 1482 | -10/Mines | Discovered new exit (range 6) 1568 | -10/Mines | Discovered new exit (range 8) 1580 | -10/Mines | Learned location of Storage (-9) 1650 | -10/Mines | Entered Materials 1650 | -9/Materials | Evolved 2 slots: Utility x2 1651 | -9/Materials | Identified exit to Storage 1652 | -9/Materials | Loaded intel: 20 trap records 2075 | -9/Materials | Discovered new exit (range 7) 2546 | -9/Materials | Identified exit to Mines 2745 | -9/Materials | Build established: Scavenger-Mutant 2930 | -9/Materials | Entered Mines 2933 | -9/Mines | Received a Mining Laser from a helpful Derelict 3075 | -9/Mines | A weapon hastily lodged in a ceiling crevice suddenly fell to the ground 3099 | -9/Mines | Discovered new exit (range 5) 3439 | -9/Mines | Deemed a non-threat by the Exiles lab entrance 3441 | -9/Mines | Discovered new exit (range 5) 3529 | -9/Mines | Discovered new exit (range 9) 3627 | -9/Mines | Learned Materials garrison access intel 3725 | -9/Mines | Entered Exiles 3763 | -9/Exiles | Met 8R-AWN 3791 | -9/Exiles | Met EX-HEX 3853 | -9/Exiles | Met EX-DEC 3887 | -9/Exiles | Learned location of Zion (-6) 5199 | -9/Exiles | Attacked by the Exiles 5319 | -9/Exiles | Core integrity fell below 50% 5376 | -9/Exiles | Lost 7 parts (1n3u3w) 5394 | -9/Exiles | Destroyed 8R-AWN 5500 | -9/Exiles | Build established: Mutant 5522 | -9/Exiles | Lost 3 parts (2u1w) 5730 | -9/Exiles | Destroyed EX-BIN 5732 | -9/Exiles | Core integrity fell below 20% 5744 | -9/Exiles | Destroyed by EX-DEC with AWS/EX-DEC Last Messages --------------- 05730_ EX-BIN system corrupted by crushing effect. 05730_ EX-BIN: "You can't kill me, my evil twin will get revenge!" 05730_ EX-BIN destroyed. 05734_ Imp. Ion Engine destroyed. 05736_ System corrupted: Component data lost. 05737_ Sneak attack on EX-DEC. 05737_ Destroyed Imp. Armor Integrity Analyzer. 05737_ Destroyed EX Chip 2. 05737_ Destroyed EX Chip 1. 05737_ Destroyed EX Chip 2. 05737_ EX-DEC system corrupted by crushing effect. 05739_ Sneak attack on EX-DEC. 05739_ Destroyed Imp. Target Analyzer. 05739_ Destroyed EX Chip 2. 05739_ Destroyed EX Chip 1. 05739_ Destroyed Adv. Launcher Guidance Computer. 05739_ EX-DEC system corrupted by crushing effect. 05739_ EX-DEC knocked back. 05740_ Lgt. Treads destroyed. 05742_ Imp. Light Armor Plating destroyed. Map ----- +----------------------------------------------------+ | ??????????????????#"""" ""## ##""" | | ??????????????????#"" ""#### ###### | | ??????????????????#" """"##??# #????# | | ??????????????????#""" """#??## ####?? | | ??????????????????## ""##??# "!#?? | | ???????????????????#"" """##???#" !#?? | | ???????????????????##""" ##????#" "#?? | | ????????????????????##"""" ##?????# ""!"#?? | | ?????????????????????### #??????########?? | | ???????????????????????##### ##???????????????? | | ???????????????????????????## #????????????????? | | ????????????????????????????# #????????????????? | | ????????????????????????????# #????????????????? | | ????????????????????????????# #????????????????? | | ????????????????????????????# #????????????????? | | ????????????????????????????# #????????????????? | | ??????????????????""????????# #????????????????? | | ??????????????????" "??????# #????????????????? | | ??????????????????"" ??????# #????????????????? | | ??????????????????"" ?????# #????????????????? | | ????????????????####"""###### ########?????????? | | ????????????????"""" """""" """"""#?????????? | | ??????????? """"""" z "#""???????? | | ?????????? " ??????? | | ?????????? z " "??????? | | ?????????? c@*% " "??????? | | ?????????? z #""???????? | | ??????????? " """"" " """" """""#?????????? | | ????????????????"###"""########"""######?????????? | | ??????????????????"" ???????? ""?????????????? | | ??????????????????""" ????????? """#????????????? | | ??????????????????" ??????????"""""#????????????? | | ???????????????????"??????????? """??????????????? | | ?????????????????????????????????"???????????????? | | ?????????????????????????????????????????????????? | | ?????????????????????????????????????????????????? | | ?????????????????????????????????????????????????? | | ?????????????????????????????????????????????????? | | ?????????????????????????????????????????????????? | | | | | | | | | | | | | | | | | | | | | | | +----------------------------------------------------+ Best States ------------- Heat Dissipation 28 Energy Generation 12 Energy Capacity 265 Matter Stores 300 Matter Capacity 300 Sight Range 16 Terrain Scan Density 10 Armor Coverage 525 Evasion (%) 55 Recoil Reduction 2 Item Schematics ----------------- None Robot Schematics ------------------ None Fabricated ------------ Nothing Alien Tech Used ----------------- None Achievements -------------- None Challenges ------------ None Game ------ Seed AdvancedDefenseInterrupter Manual? 0 Play Time 00:39:56 Cumulative 137.7 hours Start 2024.04.20 @ 17:04:59 End 2024.04.20 @ 17:43:47 Sessions 1 Manual Loads 0 Difficulty Rogue Special Mode None Game No. 125 Rogue 125 Adventurer 0 Explorer 0 Win Type - Total 3 Types 2/0/0/1/0/0/0/0/0 Lore% 54 Gallery% 72 Achievement% 55 Wizard Run 0 Options --------- Layout 2 ASCII 0 Keyboard 1 Movement Numpad Keybinds 0 Fullscreen 1 Font 32/SmallcapsGlow Map View 77x44 Zoom Use 0% Tactical HUD 1 Map Filters NONE Filters NONE Steam 1 RUN: 536f1f2c-081a-4bd3-b54a-3a6ed7e0e17f